Cogmind - Beta 13 @@@ ROGUE MODE // 2024.07.01 @ 13:32:39 Player: RAT Result: Destroyed by S-27 Virus with Autogun Performance ------------- Evolutions (3) 1500 Regions Visited (10) 2000 Robots Destroyed (45) 225 Value Destroyed (1122) 1122 Prototype IDs (3) 60 Alien Tech Used (0) 0 Bonus (726) 726 TOTAL SCORE: 5633 Bonus ------- High Alert Combat Kills 4 Follower Combat Kills 122 Aligned with FarCom 300 Met Data Miner 300 Cogmind --------- Core Integrity 0/700 Matter 300/300 Energy 100/100 System Corruption 0% Temperature Cool (0) Movement Core (350) Ox6 Location -6/Proximity Caves Parts ------- > --- POWER (1) -------- (None) > --- PROPULSION (4) --- (None) > --- UTILITY (5) ------ Large Storage Unit Advanced Terrain Scan Processor > --- WEAPON (3) ------- (None) > --- INVENTORY (15) --- Nuclear Core Nuclear Core Enhanced Flexi-carbon Leg Flak Gun Proton Missile Launcher Rocket Launcher Rocket Launcher Remote Datajack Makeshift Axe Peak State ------------ > --- POWER ------------ Nuclear Core > --- PROPULSION ------- Aluminum Leg Aluminum Leg Aluminum Leg Carbon-fiber Leg > --- UTILITY ---------- Improved Heat Sink Large Storage Unit Advanced Terrain Scan Processor Seismic Detector > --- WEAPON ----------- Flak Gun Remote Datajack Makeshift Axe > --- INVENTORY -------- Nuclear Core Nuclear Core Particle Gun Autogun Rocket Launcher Rocket Launcher Remote Datajack [Rating: 31] Favorites ----------- Power Ion Engine Engine Ion Engine Power Core Nuclear Core Propulsion Aluminum Leg Leg Aluminum Leg Utility Seismic Detector Device Seismic Detector Storage Large Storage Unit Processor Advanced Terrain Scan Processor Weapon Beam Cannon Energy Gun Particle Gun Energy Cannon Beam Cannon Ballistic Gun Assault Rifle Launcher Rocket Launcher Special Weapon Remote Datajack Slashing Weapon Greatsword Build | -11 -10 -10 -10 -9 -8 -7 -7 -7 -7 -6 ------- Run | Yrd Mat Min Exi Min Mat Fac Low Low Dat Pro Slots Evolved 6 | . . . . . 4 2 . . . . Power . | . . . . . . . . . . . Propulsion 2 | . . . . . 2 . . . . . Utility 3 | . . . . . 2 1 . . . . Weapon 1 | . . . . . . 1 . . . . Parts Attached 47 | 6 3 . . . 26 5 4 2 . 1 Power 3 | 1 . . . . 2 . . . . . Engine 1 | 1 . . . . . . . . . . Core 2 | . . . . . 2 . . . . . Reactor . | . . . . . . . . . . . Propulsion 13 | 2 1 . . . 9 . 1 . . . Treads . | . . . . . . . . . . . Leg 13 | 2 1 . . . 9 . 1 . . . Wheel . | . . . . . . . . . . . Hover . | . . . . . . . . . . . Flight . | . . . . . . . . . . . Utility 8 | 2 . . . . 4 1 1 . . . Device 5 | 1 . . . . 3 . 1 . . . Storage 2 | 1 . . . . 1 . . . . . Processor 1 | . . . . . . 1 . . . . Hackware . | . . . . . . . . . . . Protection . | . . . . . . . . . . . Artifact . | . . . . . . . . . . . Weapon 23 | 1 2 . . . 11 4 2 2 . 1 Energy Gun 5 | . . . . . 3 1 . . . 1 Energy Cannon 3 | . 1 . . . 2 . . . . . Ballistic Gun 6 | 1 1 . . . 2 1 . 1 . . Ballistic Cannon . | . . . . . . . . . . . Launcher 6 | . . . . . 4 1 1 . . . Special Weapon 1 | . . . . . . 1 . . . . Impact Weapon . | . . . . . . . . . . . Slashing Weapon 2 | . . . . . . . 1 1 . . Piercing Weapon . | . . . . . . . . . . . Special Melee Weapon . | . . . . . . . . . . . Unidentified Prototypes 3 | . . . . . 3 . . . . . Parts Lost 22 | . . . . . 10 . 4 . . 8 Power 2 | . . . . . 1 . . . . 1 Propulsion 11 | . . . . . 6 . 2 . . 3 Utility 4 | . . . . . 2 . 1 . . 1 Weapon 5 | . . . . . 1 . 1 . . 3 Highest Loss Streak 7 | . . . . . 5 . 2 . . 7 To Critical Strikes . | . . . . . . . . . . . Average Slot Usage (%) 89 | . 94 100 100 100 93 92 82 69 69 61 Engine 6 | . 14 14 14 14 6 . . . . . Core 3 | . . . . . 2 7 7 7 7 5 Leg 27 | . 27 28 28 28 33 30 27 23 23 18 Device 13 | . 14 14 14 14 23 15 11 7 7 6 Storage 10 | . 14 14 14 14 9 7 7 7 7 7 Processor 3 | . . . . . . 7 7 7 7 7 Energy Gun 2 | . . . . . 8 7 2 . . . Energy Cannon 6 | . 10 14 14 14 6 . . . . . Ballistic Gun 8 | . 13 14 14 14 2 1 7 7 7 6 Launcher 1 | . . . . . 1 5 . . . . Special Weapon 1 | . . . . . . 7 5 . . . Slashing Weapon 1 | . . . . . . . 4 7 7 6 Naked Turns . | . . . . . . . . . . . Heaviest Build 43 | 13 16 16 16 16 43 41 40 36 36 36 Greatest Support 45 | 20 20 20 20 20 40 40 45 35 35 35 Greatest Overweight (x) 6 | . 1 . . . 3 1 1 1 1 6 Average Overweight (x) . | . . . . . . . . . 1 1 Largest Inventory Capacity 15 | 8 8 8 8 8 15 15 15 15 15 15 Average Capacity 12 | 7 8 8 8 8 14 15 15 15 15 15 Most Carried 14 | 5 7 7 7 8 14 10 13 10 9 10 Average Carried 8 | 3 5 7 7 6 9 9 8 8 9 9 Final Capacity 15 | 8 8 8 8 8 15 15 15 15 15 15 Final Carried 10 | 4 7 7 7 7 10 10 7 9 9 9 Class Distribution -------------------- 61% | Mutant 22% | Scavenger-Skirmisher 8% | Scavenger-Mutant 3% | Skirmisher 3% | Scavenger-Gunner Dominant Class ---------------- Mutant | -10/Materials Mutant | -10/Mines Mutant | -10/Exiles Mutant | -9/Mines Scavenger-Skirmisher | -8/Materials Scavenger-Skirmisher | -7/Factory Scavenger-Mutant | -7/Lower Caves Mutant | -7/Lower Caves Mutant | -7/Data Miner Mutant | -6/Proximity Caves Resources | -11 -10 -10 -10 -9 -8 -7 -7 -7 -7 -6 ----------- Run | Yrd Mat Min Exi Min Mat Fac Low Low Dat Pro Matter Collected 1084 | 278 44 . . 7 212 148 164 47 . 184 Remotely . | . . . . . . . . . . . Salvage Created 1282 | 111 102 . . . 753 163 84 . . 69 Parts 79 | 3 6 . . . 55 6 3 . . 6 Haulers Intercepted 2 | . . . . . 2 . . . . . Recyclers Shooed . | . . . . . . . . . . . Parts Field Recycled . | . . . . . . . . . . . Retrieved Matter . | . . . . . . . . . . . Parts Self-Destructed 10 | . . . . . . . 1 . . 9 Prevented . | . . . . . . . . . . . Kills | -11 -10 -10 -10 -9 -8 -7 -7 -7 -7 -6 ------- Run | Yrd Mat Min Exi Min Mat Fac Low Low Dat Pro Combat Hostiles Destroyed 28 | . 2 . . . 17 4 2 . . 3 Melee 2 | . . . . . . . 1 . . 1 Guns 7 | . . . . . 4 1 1 . . 1 Cannons 6 | . 2 . . . 4 . . . . . AOE 13 | . . . . . 9 3 . . . 1 Classes Destroyed 13 | 2 2 . . . 6 . 2 . . 1 Worker 2 | . . . . . 2 . . . . . Builder 5 | . . . . . 5 . . . . . Tunneler 1 | 1 . . . . . . . . . . Hauler 2 | . . . . . 2 . . . . . Recycler 3 | 1 . . . . 2 . . . . . Minesweeper 1 | . . . . . . . 1 . . . Drone 2 | . . . . . . . . . . 2 Watcher 3 | . 1 . . . 1 1 . . . . Swarmer 8 | . . . . . 8 . . . . . Grunt 13 | . 2 . . . 5 4 1 . . 1 Sentry 3 | . . . . . 3 . . . . . Hunter 1 | . . . . . 1 . . . . . Mutant 1 | . . . . . . . 1 . . . Best Kill Streak 10 | 2 3 . . . 10 4 1 . . 2 Combat Bots Only 4 | . 2 . . . 4 4 1 . . 2 Max Kills in Single Turn 5 | 1 1 . . . 5 1 1 . . 1 Gunslinging . | . . . . . . . . . . . Exploded 4 | . . . . . 4 1 . . . 1 Melee 1 | . . . . . . . 1 . . 1 Uniques/NPCs Destroyed . | . . . . . . . . . . . Combat | -11 -10 -10 -10 -9 -8 -7 -7 -7 -7 -6 -------- Run | Yrd Mat Min Exi Min Mat Fac Low Low Dat Pro Hostile Shots Fired 279 | . 8 . . . 129 15 31 1 . 95 Missed 64 | . 2 . . . 32 5 7 . . 18 Damage Taken 3502 | . 66 . . . 1457 268 486 . . 1225 Core 912 | . 11 . . . 195 70 149 . . 487 Absorbed by Shields . | . . . . . . . . . . . Core Remaining (%) 86 | 100 . . . 95 64 . . . . . Volleys Fired 97 | 6 7 . . . 48 12 14 2 . 8 Largest 2 | 1 2 . . . 2 2 2 1 . 2 Hottest 125 | 20 80 . . . 125 93 61 28 . 88 Shots Fired 164 | 6 14 . . . 94 24 15 2 . 9 Gun 102 | 6 7 . . . 50 14 14 2 . 9 Cannon 40 | . 7 . . . 33 . . . . . Launcher 22 | . . . . . 11 10 1 . . . Special . | . . . . . . . . . . . Kinetic 50 | 6 7 . . . 11 2 14 2 . 8 Thermal 78 | . 7 . . . 68 2 . . . 1 Explosive 22 | . . . . . 11 10 1 . . . Electromagnetic 14 | . . . . . 4 10 . . . . Robot Hit Streak 9 | 3 7 . . . 9 3 7 1 . 1 Robot Miss Streak 11 | 1 2 . . . 3 11 5 4 . 6 Penetration Max . | . . . . . . . . . . . Secondary Targets . | . . . . . . . . . . . Shots Hit Robots 111 | 4 9 . . . 63 13 17 2 . 3 Core Hits 81 | 3 4 . . 1 41 13 14 1 . 4 Critical Kills . | . . . . . . . . . . . Critical Parts Destroyed . | . . . . . . . . . . . Critical Strikes 2 | . . . . . 1 1 . . . . Burn 2 | . . . . . 1 1 . . . . Melee Attacks 9 | . . . . . . . 7 . . 2 Impact . | . . . . . . . . . . . Slashing 9 | . . . . . . . 7 . . 2 Piercing . | . . . . . . . . . . . Sneak Attacks 1 | . . . . . . . 1 . . . Combat Hostiles . | . . . . . . . . . . . Follow-up Attacks . | . . . . . . . . . . . Damage Inflicted 3399 | 55 130 . . 14 2184 499 409 17 . 91 Guns 953 | 55 61 . . . 426 128 228 17 . 38 Cannons 525 | . 69 . . . 456 . . . . . Explosions 1668 | . . . . . 1302 366 . . . . Melee 234 | . . . . . . . 181 . . 53 Ramming 19 | . . . . 14 . 5 . . . . Kinetic 455 | 55 61 . . . 64 5 228 17 . 25 Thermal 997 | . 69 . . . 897 18 . . . 13 Explosive 1552 | . . . . . 1186 366 . . . . Electromagnetic 142 | . . . . . 37 105 . . . . Impact . | . . . . . . . . . . . Slashing 234 | . . . . . . . 181 . . 53 Piercing . | . . . . . . . . . . . Highest Corruption . | . . . . . . . . . . . Average Corruption . | . . . . . . . . . . . Corruption Purged . | . . . . . . . . . . . Corruption Blocked . | . . . . . . . . . . . Overload Shots . | . . . . . . . . . . . Overflow Damage 103 | . . . . . 53 . 50 . . . Projectiles . | . . . . . . . . . . . Explosions 56 | . . . . . 53 . 3 . . . Melee 47 | . . . . . . . 47 . . . Knockbacks . | . . . . . . . . . . . Impact . | . . . . . . . . . . . Kinetic . | . . . . . . . . . . . Secondary . | . . . . . . . . . . . Self-Inflicted Damage 260 | . . . . . 119 103 38 . . . Shots 9 | . . . . . 5 3 1 . . . Rammed . | . . . . . . . . . . . Targets Rammed 2 | . . . . 1 . 1 . . . . Kicked 2 | . . . . 1 . 1 . . . . Crushed . | . . . . . . . . . . . Highest Temperature 437 | . 66 . . . 437 5 7 . . 20 Average Temperature 115 | . 33 . . . 131 5 7 . . 15 Received Heat Transfer 924 | . 36 . . . 477 108 201 . . 102 Effects 1 | . . . . . 1 . . . . . Matter Decay 1 | . . . . . 1 . . . . . Siege Activations . | . . . . . . . . . . . Robots Corrupted . | . . . . . . . . . . . Combat Hostiles . | . . . . . . . . . . . Parts Fried 1 | . . . . . . . . . . 1 Impact Corruptions . | . . . . . . . . . . . Robots Melted . | . . . . . . . . . . . Combat Hostiles . | . . . . . . . . . . . Parts Melted 2 | . . . . . 2 . . . . . Heat Transferred 2309 | . 148 . . . 2013 111 . . . 37 Parts Sabotaged . | . . . . . . . . . . . Parts Stolen 1 | . . . . . . . . 1 . . Parts Stripped . | . . . . . . . . . . . Power Chain Reactions 2 | . . . . . 1 1 . . . . Alert | -11 -10 -10 -10 -9 -8 -7 -7 -7 -7 -6 ------- Run | Yrd Mat Min Exi Min Mat Fac Low Low Dat Pro Peak Influence 448 | 10 73 28 . . 448 385 . . . . Initial 135 | . 6 28 . . . 135 . . . . Average 138 | 3 23 28 . . 164 259 . . . . Maximum Alert Level 2 | . . . . . 2 1 . . . . Low Security (%) 67 | 100 100 100 . 100 60 37 . . . . Level 1 31 | . . . . . 34 62 . . . . Level 2 1 | . . . . . 5 . . . . . Level 3 . | . . . . . . . . . . . Level 4 . | . . . . . . . . . . . Level 5 . | . . . . . . . . . . . High Security . | . . . . . . . . . . . Max Security . | . . . . . . . . . . . Squads Dispatched 5 | . 2 . . . 2 1 . . . . Investigation 1 | . . . . . . 1 . . . . Extermination . | . . . . . . . . . . . Reinforcement 4 | . 2 . . . 2 . . . . . Assault . | . . . . . . . . . . . Garrison . | . . . . . . . . . . . Intercept . | . . . . . . . . . . . Searches Triggered . | . . . . . . . . . . . Construction Impeded . | . . . . . . . . . . . Haulers Reinforced . | . . . . . . . . . . . Active Scanning Responses . | . . . . . . . . . . . Cargo Convoy Interrupts . | . . . . . . . . . . . Stealth | -11 -10 -10 -10 -9 -8 -7 -7 -7 -7 -6 --------- Run | Yrd Mat Min Exi Min Mat Fac Low Low Dat Pro Distress Signals 4 | . 1 . . . 2 1 . . . . Communications Jammed . | . . . . . . . . . . . Distress Signals . | . . . . . . . . . . . Times Spotted 63 | . 4 . . . 31 11 3 1 . 13 Peak Tracking Total 6 | . 2 . . . 6 4 1 1 . 5 Tactical Retreats 8 | . . . . . 4 1 1 . . 2 Traps | -11 -10 -10 -10 -9 -8 -7 -7 -7 -7 -6 ------- Run | Yrd Mat Min Exi Min Mat Fac Low Low Dat Pro Traps Triggered 2 | . 1 . . . . 1 . . . . Indirectly . | . . . . . . . . . . . Trap Hack Attempts . | . . . . . . . . . . . Triggered . | . . . . . . . . . . . Disarmed . | . . . . . . . . . . . Reprogrammed . | . . . . . . . . . . . Reused . | . . . . . . . . . . . Traps Extracted . | . . . . . . . . . . . Installed . | . . . . . . . . . . . Triggered 1 | . . . . . . . . . . 1 Machines | -11 -10 -10 -10 -9 -8 -7 -7 -7 -7 -6 ---------- Run | Yrd Mat Min Exi Min Mat Fac Low Low Dat Pro Machines Disabled 8 | . . . . . 4 3 1 . . . Max in Single Turn 2 | . . . . . 2 1 1 . . . Machines Repaired . | . . . . . . . . . . . Machines Dismantled . | . . . . . . . . . . . Machines Sabotaged . | . . . . . . . . . . . Overloaded Fab Kills . | . . . . . . . . . . . Hacking | -11 -10 -10 -10 -9 -8 -7 -7 -7 -7 -6 --------- Run | Yrd Mat Min Exi Min Mat Fac Low Low Dat Pro Machines Accessed 3 | . . . . 1 . . . 1 1 . Terminals 1 | . . . . . . . . 1 . . Fabricators . | . . . . . . . . . . . Repair Stations . | . . . . . . . . . . . Recycling Units . | . . . . . . . . . . . Scanalyzers . | . . . . . . . . . . . Garrison Access . | . . . . . . . . . . . Total Hacks 3 | . . . . 1 . . . 1 1 . Successful 3 | . . . . 1 . . . 1 1 . Failed . | . . . . . . . . . . . Catastrophic . | . . . . . . . . . . . Database Lockouts . | . . . . . . . . . . . Manual 3 | . . . 2 . . . . 1 . . Terminals 1 | . . . . . . . . 1 . . Fabricators . | . . . . . . . . . . . Repair Stations . | . . . . . . . . . . . Recycling Units . | . . . . . . . . . . . Scanalyzers . | . . . . . . . . . . . Garrison Access . | . . . . . . . . . . . Terminal Hacks 3 | . . . . 1 . . . 1 1 . Record 2 | . . . . . . . . 1 1 . Open Door 1 | . . . . 1 . . . . . . Fabricator Hacks . | . . . . . . . . . . . Repair Station Hacks . | . . . . . . . . . . . Recycling Unit Hacks . | . . . . . . . . . . . Scanalyzer . | . . . . . . . . . . . Garrison Access Hacks . | . . . . . . . . . . . Unauthorized Hacks . | . . . . . . . . . . . Terminals . | . . . . . . . . . . . Fabricators . | . . . . . . . . . . . Repair Stations . | . . . . . . . . . . . Recycling Units . | . . . . . . . . . . . Scanalyzers . | . . . . . . . . . . . Garrison Access . | . . . . . . . . . . . Data Cores Recovered . | . . . . . . . . . . . Used . | . . . . . . . . . . . Hacking Detections . | . . . . . . . . . . . Full Trace Events . | . . . . . . . . . . . Feedback Events . | . . . . . . . . . . . Feedback Blocked . | . . . . . . . . . . . Robot Schematics Acquired . | . . . . . . . . . . . Robots Built . | . . . . . . . . . . . Authchips . | . . . . . . . . . . . Time . | . . . . . . . . . . . Total Robot Build Rating . | . . . . . . . . . . . Part Schematics Acquired . | . . . . . . . . . . . Parts Built . | . . . . . . . . . . . Authchips . | . . . . . . . . . . . Time . | . . . . . . . . . . . Total Part Build Rating . | . . . . . . . . . . . Parts Repaired . | . . . . . . . . . . . Time . | . . . . . . . . . . . Parts Recycled . | . . . . . . . . . . . Recycled Matter . | . . . . . . . . . . . Retrieved Matter . | . . . . . . . . . . . Retrieved Components . | . . . . . . . . . . . Parts Scanalyzed . | . . . . . . . . . . . Part Schematics Acquired . | . . . . . . . . . . . Parts Damaged . | . . . . . . . . . . . Bothacking | -11 -10 -10 -10 -9 -8 -7 -7 -7 -7 -6 ------------ Run | Yrd Mat Min Exi Min Mat Fac Low Low Dat Pro Used RIF Installer . | . . . . . . . . . . . Robots Hacked . | . . . . . . . . . . . Non-combat . | . . . . . . . . . . . Combat . | . . . . . . . . . . . Robot Hacks Applied . | . . . . . . . . . . . Relay Couplers Released . | . . . . . . . . . . . Fabnet Peak Effective % . | . . . . . . . . . . . Robots Rewired . | . . . . . . . . . . . Allies Hacked . | . . . . . . . . . . . Hacks Repelled . | . . . . . . . . . . . Allies | -11 -10 -10 -10 -9 -8 -7 -7 -7 -7 -6 -------- Run | Yrd Mat Min Exi Min Mat Fac Low Low Dat Pro Total Allies 4 | . . . . . 3 . . . . 1 Largest Group 1 | . . . . . 1 . . . . 1 Highest-Rated Group 96 | . . . . . 90 . . . . 96 Highest-Rated Ally 96 | . . . . . 90 . . . . 96 Total Orders . | . . . . . . . . . . . Ally Attacks 47 | . . . . . 31 . . . . 16 Total Damage 749 | . . . . . 279 . . . . 470 Kills 3 | . . . . . 1 . . . . 2 Allies Corrupted . | . . . . . . . . . . . Allies Melted 2 | . . . . . 2 . . . . . Intel | -11 -10 -10 -10 -9 -8 -7 -7 -7 -7 -6 ------- Run | Yrd Mat Min Exi Min Mat Fac Low Low Dat Pro Robot Analysis Total . | . . . . . . . . . . . Derelict Logs Recovered 3 | . . . . 1 . . 1 1 . . Drone Launches 22 | . . . . . 22 . . . . . Drone Recoveries 22 | . . . . . 22 . . . . . Exploration | -11 -10 -10 -10 -9 -8 -7 -7 -7 -7 -6 ------------- Run | Yrd Mat Min Exi Min Mat Fac Low Low Dat Pro Turns Passed 5725 | 94 164 79 1417 575 900 806 531 726 173 260 Spaces Moved 3418 | 63 97 63 1178 388 296 407 339 380 92 115 Core 18 | 11 . . . . . . . . . 7 Treads . | . . . . . . . . . . . Legs 3400 | 52 97 63 1178 388 296 407 339 380 92 108 Wheels . | . . . . . . . . . . . Hover . | . . . . . . . . . . . Flight . | . . . . . . . . . . . Fastest Speed 50 | 50 120 120 120 120 120 120 120 120 190 190 Average Speed 143 | 107 122 120 120 120 161 172 139 189 190 199 Slowest Speed 350 | 120 190 120 120 120 330 190 190 190 190 350 Overloaded Moves . | . . . . . . . . . . . Propulsion Burnouts . | . . . . . . . . . . . Robots Hopped . | . . . . . . . . . . . Cave-ins Triggered . | . . . . . . . . . . . Exploration Rate (%) 45 | 5 24 30 92 71 31 13 74 73 68 22 Regions Visited 10 Branch Regions 7 Pre-discovered Areas 1 | . . . . . . . . 1 . . Known Exits Taken 1 | . . . . . 1 . . . . . Unknown Exits Taken 9 | 1 1 1 1 1 . 1 1 1 1 . Scrap Searched 9 | . . . . 1 . . 4 2 . 2 Spaces Dug 10 | . . . . . . . 10 . . . Terrain Destroyed 159 | . . . . . 81 68 10 . . . Melee . | . . . . . . . . . . . Projectile . | . . . . . . . . . . . AOE 159 | . . . . . 81 68 10 . . . Terrain Rammed . | . . . . . . . . . . . Walls Destroyed . | . . . . . . . . . . . Machines Disabled . | . . . . . . . . . . . Actions | -11 -10 -10 -10 -9 -8 -7 -7 -7 -7 -6 --------- Run | Yrd Mat Min Exi Min Mat Fac Low Low Dat Pro Total 4047 | 81 127 66 1181 498 620 483 378 387 91 135 Wait 425 | 1 16 4 4 106 223 57 6 . . 8 Move 3408 | 62 96 62 1177 387 295 406 338 379 91 115 Hop . | . . . . . . . . . . . Pick Up 43 | 6 5 . . 2 21 2 4 2 . 1 Fast Attach 5 | 4 1 . . . . . . . . . Attach 24 | 2 2 . . . 13 2 2 2 . 1 Detach 2 | . . . . . . . . 2 . . Swap 18 | . . . . . 13 3 2 . . . Drop 14 | . . . . 2 7 . 5 . . . Fire 97 | 6 7 . . . 48 12 14 2 . 8 Melee 9 | . . . . . . . 7 . . 2 Ram . | . . . . . . . . . . . Kick 2 | . . . . 1 . 1 . . . . Crush . | . . . . . . . . . . . Escape Stasis . | . . . . . . . . . . . Rewire . | . . . . . . . . . . . Trap . | . . . . . . . . . . . Miscellaneous . | . . . . . . . . . . . Route ------- -11/Scrapyard -10/Materials -10/Mines -10/Exiles (discovered 2 exits: *Min x2) -9/Mines -8/Materials (discovered 3 exits: *Fac x2 / [*Sto]) -7/Factory (discovered 2 exits: [*Fac] / [*Low]) -7/Lower Caves -7/Lower Caves -7/Data Miner -6/Proximity Caves History --------- Turn | Location | Event 6 | -11/Scrapyard | Discovered new exit (range 14) 95 | -11/Scrapyard | Entered Materials 227 | -10/Materials | Met 8R-AWN 248 | -10/Materials | Discovered new exit (range 5) 259 | -10/Materials | Entered Mines 261 | -10/Mines | Followed 8R-AWN into the Mines 311 | -10/Mines | Build established: Mutant 333 | -10/Mines | Discovered new exit (range 5) 338 | -10/Mines | Entered Exiles 356 | -10/Exiles | Discovered new exit (range 15) 373 | -10/Exiles | Welcomed by 8R-AWN 391 | -10/Exiles | Met EX-HEX 445 | -10/Exiles | Met EX-DEC 468 | -10/Exiles | Visited The Gauntlet 703 | -10/Exiles | Discovered new exit (range 14) 815 | -10/Exiles | Met EX-BIN 845 | -10/Exiles | Aligned with FarCom system 846 | -10/Exiles | Given EX-Vault access code 1360 | -10/Exiles | Learned about 8R-AWN's background 1755 | -10/Exiles | Entered Mines 1767 | -9/Mines | Found the Drone Emporium 1784 | -9/Mines | Found Prototype Device 1953 | -9/Mines | Found a damaged Exp. Sensor Array with a note attached 1955 | -9/Mines | Found Prototype Device 2314 | -9/Mines | Discovered new exit (range 14) 2330 | -9/Mines | Entered Materials 2330 | -8/Materials | Evolved 4 slots: Propulsion x2, Utility x2 2330 | -8/Materials | Identified Exp. Sensor Array 2331 | -8/Materials | Identified exit to Factory 2331 | -8/Materials | Identified Splice Drone Bay 2352 | -8/Materials | Discovered new exit (range 25) 2414 | -8/Materials | Lost 3 allies 2720 | -8/Materials | Build established: Scavenger-Skirmisher 3074 | -8/Materials | Lost 5 parts (1p2n2u) 3198 | -8/Materials | Discovered exit to Factory (range 16) 3230 | -8/Materials | Entered Factory 3230 | -7/Factory | Evolved 2 slots: Utility x1, Weapon x1 3486 | -7/Factory | Discovered new exit (range 14) 3614 | -7/Factory | Discovered new exit (range 14) 4036 | -7/Factory | Entered Lower Caves 4087 | -7/Lower Caves | Spotted B-75 Beast 4248 | -7/Lower Caves | Attacked by a delusional Derelict stockpiling parts 4502 | -7/Lower Caves | Discovered new exit (range 10) 4514 | -7/Lower Caves | Learned 4 Factory zone layouts 4528 | -7/Lower Caves | Build established: Scavenger-Mutant 4567 | -7/Lower Caves | Entered another Lower Caves area 4621 | -7/Lower Caves | Learned location of Extension (-6) 4869 | -7/Lower Caves | Build established: Mutant 5268 | -7/Lower Caves | Discovered new exit (range 13) 5293 | -7/Lower Caves | Entered Data Miner 5293 | -7/Data Miner | Discovered new exit (range 7) 5330 | -7/Data Miner | Met Data Miner 5411 | -7/Data Miner | Acquired the access code to Warlord's prototype stash 5425 | -7/Data Miner | Received God Mode back door access code from Data Miner 5466 | -7/Data Miner | Entered Proximity Caves 5469 | -6/Proximity Caves | Spotter reported a threat 5522 | -6/Proximity Caves | Spotter reported a threat 5575 | -6/Proximity Caves | Spotter reported a threat 5638 | -6/Proximity Caves | Escorted by Enhanced Grunt 5695 | -6/Proximity Caves | Spotted B-75 Beast 5701 | -6/Proximity Caves | Core integrity fell below 50% 5716 | -6/Proximity Caves | Core integrity fell below 20% 5726 | -6/Proximity Caves | Destroyed by S-27 Virus with Autogun Last Messages --------------- 05659_ Hvy. Laser fries itself beyond repair. 05666_ Carbon-fiber Leg fries itself beyond repair. 05667_ G-67 Veteran destroyed. 05672_ Acquired 62 matter. 05674_ Acquired 7 matter. 05675_ Adv. Heat Sink fries itself beyond repair. 05685_ Enhanced Grunt destroyed. 05685_ Nuclear Core destroyed. 05688_ Acquired Prototype Leg. 05691_ Greatsword destroyed. 05694_ Imp. Heat Sink destroyed. 05695_ Acquired 5 matter. 05696_ Acquired 4 matter. 05696_ Aluminum Leg destroyed. 05698_ Autogun destroyed. 05701_ Particle Gun destroyed. 05701_ Carbon-fiber Leg destroyed. 05720_ Knocked back. Map ----- +----------------------------------------------------+ | ?????????????????????????????????????????????????? | | ?????????????????????????????????????????????????? | | ##??????????????????????????????? ?????????????? | | #?????????###???###????????? ?????????????? | | #?????????# #?## ##???????? #?????????????? | | #?????????# ## #???????? #?????????????? | | #??????????# ##?????? #??????????????? | | ###???????## ####??? #???????????????? | | #???????# #"#??? #????????????????? | | #??????## ##?# #????????????????? | | ##??????# ## ##???????????????? | | #???????# ## #????#??????????? | | ##???????## ##% #### ! #??? ?????????? | | ##????????## #??#%!% ### ?????????? | | ###???????# !#?##!! "" ????????? | | ###?????# ##?# ! B " ????????? | | ###???## ##?##% B " ?????????? | | ##??## ###?## ## ##?????????????? | | ## #?## ##???# #?; """#????????????? | | #### ### ##???##### ##; #####????????????? | | ???# ##?######ss#;; ####?????????????? | | ???# #?# % #?????????????? | | ## ### #?????????????? | | #### ## # s#### ???????? | | ### #??# #### #" "" " ???????? | | #??## #??## #??# #""@ # # ###???????? | | #????###???# #?# ?# T #??#?? #?????????? | | #???????????####?## ??# " g #????????????????? | | ??????????????????#???# #????????????????? | | ?????????????????????? #????????????????? | | ????????????????????? "["#????????????????? | | ???????????????????? #" " #????????????????? | | ???????????????????# #" #????????????????? | | ???????????????????# ?##+### ##????????????????? | | ??????????????????????? ??? ??????????????????? | | ??????????????????????? ???? ?????????????????? | | ????????????????????????????####?????????????????? | | ?????????????????????????????????????????????????? | | ?????????????????????????????????????????????????? | | ?????????????????????????????????????????????????? | | ?????????????????????????????????????????????????? | | ?????????????????????????????????????????????????? | | ?????????????????????????????????????????????????? | | ?????????????????????????????????????????????????? | | ?????????????????????????????????????????????????? | | | | | | | | | | | +----------------------------------------------------+ Best States ------------- Heat Dissipation 56 Energy Generation 14 Energy Capacity 250 Matter Stores 300 Matter Capacity 300 Sight Range 16 Robot Scan Range 20 Terrain Scan Density 210 Evasion (%) 55 Item Schematics ----------------- None Robot Schematics ------------------ None Fabricated ------------ Nothing Alien Tech Used ----------------- None Achievements -------------- Factory Defaults The Oracle Challenges ------------ None Game ------ Seed DirtyHeartLaser Manual? 0 Play Time 00:38:24 Cumulative 17.4 hours Start 2024.07.01 @ 12:50:08 End 2024.07.01 @ 13:32:39 Sessions 1 Manual Loads 0 Difficulty Rogue Special Mode None Game No. 73 Rogue 73 Adventurer 0 Explorer 0 Win Type - Total 0 Types 0/0/0/0/0/0/0/0/0 Lore% 6 Gallery% 21 Achievement% 15 Wizard Run 0 Options --------- Layout 1 ASCII 0 Keyboard 0 Movement Mouse Keybinds 0 Fullscreen 1 Font 24/Smallcaps Map View 50x35 Zoom Use 0% Tactical HUD 1 Map Filters NONE Filters NONE Steam 1 RUN: 262ec028-993c-487a-84b7-5da1660a5386